fUST/lending_fUST_20241229
["ID","MTS","AMOUNT","RATE_DAILY","PERIOD"]
[346947017,1735415451851,-195.77549,0.000189,2]
[346947019,1735415451860,-151.0,0.000189,2]
[346947020,1735415451869,-151.0,0.00018956,2]
[346947021,1735415451878,-153.0,0.00018956,2]
[346947022,1735415451887,-2018.7,0.00018999,2]
[346947023,1735415451896,-160.0,0.00018999,2]
[346947024,1735415451905,-160.0,0.00018999,2]
[346947025,1735415451914,-10857.41497721,0.00019,2]
[346947026,1735415451923,-151.0,0.00019,2]
[346947027,1735415451932,-151.0,0.00019,2]
[346947028,1735415451941,-151.0,0.00019,2]
[346947029,1735415451950,-175.52379,0.00019,2]
[346947030,1735415451958,-175.52379,0.00019,2]
[346947031,1735415451968,-269.988816,0.00019,2]
[346947032,1735415451977,-269.988816,0.00019,2]
[346947033,1735415451986,-151.0,0.00019,2]
[346947034,1735415451995,-945.932784,0.00019,2]
[346947035,1735415452004,-945.932784,0.00019,2]
[346947036,1735415452013,-2408.52192475,0.00019069,2]
[346947037,1735415452022,-2927.49,0.00019081,2]
[346947038,1735415452031,-500.0,0.00019081,2]
[346947039,1735415452040,-160.0,0.00019082,2]
[346947040,1735415452050,-161.98170315,0.00019082,2]
[346947041,1735415452059,-203.377828,0.00019082,2]
[346947042,1735415452067,-203.377828,0.00019082,2]
[346947043,1735415452077,-151.0,0.00019082,2]
[346947044,1735415452085,-752.0,0.00019083,2]
[346947045,1735415452094,-165.41856636,0.00019086,2]
[346947046,1735415452104,-2018.7,0.00019177,2]
[346947047,1735415452113,-500.0,0.00019178,6]
[346947048,1735415452122,-500.0,0.00019178,2]
[346947049,1735415452131,-202.51577,0.00019178,2]
[346947050,1735415452140,-309.60699739,0.0001923,2]
[346947051,1735415452149,-448.878934,0.00019298,2]
[346947052,1735415452158,-448.878934,0.00019298,2]
[346947053,1735415452167,-473.319301,0.00019298,2]
[346947054,1735415452176,-473.319301,0.00019298,2]
[346947055,1735415452187,-192.627255,0.00019298,2]
[346947056,1735415452196,-192.627255,0.00019298,2]
[346947057,1735415452206,-524.829972,0.00019298,2]
[346947058,1735415452215,-524.829972,0.00019298,2]
[346947059,1735415452224,-883.346,0.00019307,2]
[346947060,1735415452233,-2927.49,0.00019355,2]
[346947061,1735415452243,-500.0,0.00019355,2]
[346947062,1735415452251,-718.03569,0.00019356,2]
[346947063,1735415452260,-151.0,0.00019356,2]
[346947064,1735415452269,-718.03569,0.00019356,2]
[346947065,1735415452279,-151.0,0.00019356,2]
[346947066,1735415452290,-195.77549,0.00019356,2]
[346947067,1735415452300,-195.77549,0.00019356,2]
[346947068,1735415452309,-151.0,0.00019356,2]
[346947069,1735415452318,-752.0,0.00019357,2]
[346947070,1735415452329,-706.674,0.0001948,2]
[346947071,1735415452339,-503.51640862,0.0001962,2]
[346947072,1735415452348,-2927.49,0.00019629,2]
[346947073,1735415452430,-500.0,0.00019629,2]
[346947074,1735415452440,-153.685708,0.0001963,2]
[346947075,1735415452449,-153.685708,0.0001963,2]
[346947076,1735415452458,-287.286945,0.0001963,2]
[346947077,1735415452467,-287.286945,0.0001963,2]
[346947078,1735415452477,-320.310933,0.0001963,2]
[346947079,1735415452486,-151.0,0.0001963,2]
[346947080,1735415452495,-320.310933,0.0001963,2]
[346947081,1735415452504,-151.0,0.0001963,2]
[346947082,1735415452514,-752.0,0.00019631,2]
[346947083,1735415452523,-478.05500604,0.00019633,2]
[346947084,1735415452532,-151.0,0.00019699,2]
[346947085,1735415452541,-699.625851,0.00019699,2]
[346947086,1735415452550,-151.0,0.00019699,2]
[346947087,1735415452560,-699.625851,0.00019699,2]
[346947088,1735415452569,-151.0,0.000199,2]
[346947089,1735415452578,-2927.49,0.00019903,2]
[346947090,1735415452588,-624.44,0.00019903,2]
[346947091,1735415452597,-2018.7,0.00019903,2]
[346947092,1735415452606,-752.0,0.00019905,2]
[346947093,1735415452615,-3999.999999,0.0002,2]
[346947094,1735415452624,-322.481165,0.0002,2]
[346947095,1735415452633,-322.481165,0.0002,2]
[346947096,1735415452642,-151.0,0.0002,2]
[346947097,1735415452651,-151.0,0.0002,2]
[346947098,1735415452660,-200.886779,0.0002,2]
[346947099,1735415452670,-200.886779,0.0002,2]
[346947100,1735415452679,-151.0,0.0002,2]
[346947101,1735415452690,-151.0,0.0002,2]
[346947102,1735415452699,-175.52379,0.0002,2]
[346947103,1735415452708,-175.52379,0.0002,2]
[346947104,1735415452718,-269.988816,0.0002,2]
[346947105,1735415452727,-269.988816,0.0002,2]
[346947106,1735415452736,-171.35434807,0.000201,2]
[346947107,1735415452746,-151.0,0.000201,4]
[346947108,1735415452756,-2927.49,0.00020176,2]
[346947109,1735415452766,-752.0,0.00020179,2]
[346947110,1735415452775,-203.377828,0.00020273,2]
[346947111,1735415452784,-203.377828,0.00020273,2]
[346947112,1735415452794,-151.0,0.00020273,2]
[346947113,1735415452803,-192.627255,0.00020273,2]
[346947114,1735415452813,-192.627255,0.00020273,2]
[346947115,1735415452823,-524.829972,0.00020273,2]
[346947116,1735415452832,-524.829972,0.00020273,2]
[346947117,1735415452842,-499.0,0.00020273,2]
[346947118,1735415452851,-151.0,0.000203,3]
[346947119,1735415452860,-1332.0,0.00020399,2]
[346947120,1735415452869,-2018.7,0.00020407,2]
[346947121,1735415452878,-654.23153407,0.00020409,7]
[346947122,1735415452888,-654.23153407,0.00020409,7]
[346947123,1735415452897,-654.23153407,0.00020409,7]
[346947124,1735415452906,-654.23153407,0.00020409,7]
[346947125,1735415452915,-654.23153407,0.00020409,7]
[346947126,1735415452924,-654.23153407,0.00020409,7]
[346947127,1735415452934,-654.23153407,0.00020409,7]
[346947128,1735415452944,-654.23153407,0.00020409,7]
[346947129,1735415452953,-654.23153407,0.00020409,7]
[346947130,1735415452962,-654.23153407,0.00020409,7]
[346947131,1735415452972,-654.23153407,0.00020409,7]
[346947132,1735415452981,-654.23153407,0.00020409,7]
[346947133,1735415452991,-654.23153407,0.00020409,7]
[346947134,1735415453000,-654.23153407,0.00020409,7]
[346947135,1735415453009,-654.23153407,0.00020409,7]
[346947136,1735415453018,-654.23153407,0.00020409,7]
[346947137,1735415453027,-654.23153407,0.00020409,7]
[346947138,1735415453036,-654.23153407,0.00020409,7]
[346947139,1735415453045,-654.23153407,0.00020409,7]
[346947140,1735415453054,-654.23,0.00020409,7]
[346947141,1735415453063,-981.3473011,0.00020409,7]
[346947142,1735415453072,-981.3473011,0.00020409,7]
[346947143,1735415453081,-981.3473011,0.00020409,7]
[346947144,1735415453090,-981.3473011,0.00020409,7]
[346947145,1735415453099,-981.3473011,0.00020409,7]
[346947146,1735415453108,-981.3473011,0.00020409,7]
[346947147,1735415453117,-981.3473011,0.00020409,7]
[346947148,1735415453126,-981.3473011,0.00020409,7]
[346947150,1735415453135,-981.3473011,0.00020409,7]
[346947151,1735415453144,-981.3473011,0.00020409,7]
[346947152,1735415453153,-981.3473011,0.00020409,7]
[346947153,1735415453162,-981.3473011,0.00020409,7]
[346947154,1735415453171,-981.3473011,0.00020409,7]
[346947155,1735415453180,-981.3473011,0.00020409,7]
[346947156,1735415453190,-981.3473011,0.00020409,7]
[346947157,1735415453199,-981.3473011,0.00020409,7]
[346947158,1735415453208,-981.3473011,0.00020409,7]
[346947159,1735415453217,-981.3473011,0.00020409,7]
[346947160,1735415453226,-981.3473011,0.00020409,7]
[346947161,1735415453235,-981.34,0.00020409,7]
[346947162,1735415453244,-388.30945892,0.00020409,7]
[346947163,1735415453254,-388.30945892,0.00020409,7]
[346947164,1735415453263,-388.30945892,0.00020409,7]
[346947165,1735415453272,-388.30945892,0.00020409,7]
[346947166,1735415453282,-388.30945892,0.00020409,7]
[346947167,1735415453293,-388.30945892,0.00020409,7]
[346947168,1735415453302,-388.30945892,0.00020409,7]
[346947169,1735415453311,-388.30945892,0.00020409,7]
[346947170,1735415453320,-388.30945892,0.00020409,7]
[346947171,1735415453330,-388.30945892,0.00020409,7]
[346947172,1735415453339,-388.30945892,0.00020409,7]
[346947173,1735415453348,-388.30945892,0.00020409,7]
[346947174,1735415453358,-388.30945892,0.00020409,7]
[346947175,1735415453368,-388.30945892,0.00020409,7]
[346947176,1735415453377,-388.30945892,0.00020409,7]
[346947177,1735415453386,-388.30945892,0.00020409,7]
[346947178,1735415453396,-388.30945892,0.00020409,7]
[346947179,1735415453405,-388.30945892,0.00020409,7]
[346947180,1735415453414,-388.30945892,0.00020409,7]
[346947181,1735415453424,-388.3,0.00020409,7]
[346947182,1735415453433,-582.46418837,0.00020409,7]
[346947183,1735415453442,-582.46418837,0.00020409,7]
[346947184,1735415453452,-582.46418837,0.00020409,7]
[346947185,1735415453461,-582.46418837,0.00020409,7]
[346947186,1735415453471,-582.46418837,0.00020409,7]
[346947187,1735415453481,-582.46418837,0.00020409,7]
[346947188,1735415453490,-582.46418837,0.00020409,7]
[346947189,1735415453499,-582.46418837,0.00020409,7]
[346947190,1735415453509,-582.46418837,0.00020409,7]
[346947191,1735415453518,-582.46418837,0.00020409,7]
[346947192,1735415453526,-582.46418837,0.00020409,7]
[346947193,1735415453535,-582.46418837,0.00020409,7]
[346947194,1735415453544,-582.46418837,0.00020409,7]
[346947195,1735415453553,-582.46418837,0.00020409,7]
[346947196,1735415453562,-582.46418837,0.00020409,7]
[346947197,1735415453572,-582.46418837,0.00020409,7]
[346947198,1735415453581,-582.46418837,0.00020409,7]
[346947199,1735415453590,-582.46418837,0.00020409,7]
[346947200,1735415453600,-582.46418837,0.00020409,7]
[346947201,1735415453610,-582.46,0.00020409,7]
[346947202,1735415453619,-309.60699739,0.00020409,2]
[346947203,1735415453628,-151.0,0.00020409,2]
[346947205,1735415453638,-945.932784,0.00020409,2]
[346947206,1735415453647,-945.932784,0.00020409,2]
[346947207,1735415453656,-718.03569,0.00020409,2]
[346947208,1735415453665,-151.0,0.00020409,2]
[346947209,1735415453674,-718.03569,0.00020409,2]
[346947210,1735415453683,-151.0,0.00020409,2]
[346947211,1735415453692,-195.77549,0.00020409,2]
[346947212,1735415453701,-195.77549,0.00020409,2]
[346947213,1735415453711,-151.0,0.00020409,2]
[346947214,1735415453719,-3250.50224535,0.00020409,2]
[346947215,1735415453728,-400.0,0.00020447,2]
[346947216,1735415453738,-2927.49,0.0002045,2]
[346947217,1735415453747,-448.878934,0.00020452,2]
[346947218,1735415453756,-448.878934,0.00020452,2]
[346947219,1735415453765,-473.319301,0.00020452,2]
[346947220,1735415453774,-473.319301,0.00020452,2]
[346947221,1735415453783,-752.0,0.00020453,2]
[346947222,1735415453791,-151.0,0.00020498,2]
[346947223,1735415453800,-2018.7,0.00020498,2]
[346947224,1735415453809,-2018.7,0.00020498,2]
[346947225,1735415453819,-2018.7,0.00020498,2]
[346947226,1735415453828,-2018.7,0.00020498,2]
[346947227,1735415453837,-2018.7,0.00020498,2]
[346947228,1735415453846,-2018.7,0.00020498,2]
[346947229,1735415453855,-2018.80446157,0.00020498,2]
[346947230,1735415453863,-151.0,0.00020499,2]
[346947231,1735415453873,-151.0,0.00020499,2]
[346947232,1735415453882,-263.674519,0.00020499,2]
[346947233,1735415453891,-151.0,0.00020499,2]
[346947234,1735415453900,-151.0,0.00020499,2]
[346947235,1735415453909,-151.0,0.00020499,2]
[346947236,1735415453918,-151.0,0.00020499,2]
[346947237,1735415453927,-151.0,0.00020499,2]
[346947238,1735415453937,-186.992767,0.00020499,2]
[346947239,1735415453946,-151.0,0.00020499,2]
[346947240,1735415453955,-151.0,0.00020499,2]
[346947241,1735415453964,-151.0,0.00020499,2]
[346947242,1735415453973,-151.0,0.00020499,2]
[346947243,1735415453982,-222.65776,0.00020499,2]
[346947244,1735415453991,-151.0,0.00020499,2]
[346947245,1735415454000,-157.081093,0.00020499,2]
[346947246,1735415454009,-699.625851,0.00020499,2]
[346947247,1735415454019,-699.625851,0.00020499,2]
[346947248,1735415454027,-151.0,0.00020499,2]
[346947249,1735415454036,-151.0,0.00020499,2]
[346947250,1735415454045,-699.625851,0.00020499,2]
[346947251,1735415454054,-699.625851,0.00020499,2]
[346947252,1735415454064,-203.377828,0.00020499,2]
[346947253,1735415454073,-203.377828,0.00020499,2]
[346947254,1735415454082,-203.377828,0.00020499,2]
[346947255,1735415454091,-203.377828,0.00020499,2]
[346947256,1735415454100,-203.377828,0.00020499,2]
[346947257,1735415454109,-203.377828,0.00020499,2]
[346947258,1735415454118,-151.0,0.00020499,2]
[346947259,1735415454127,-151.0,0.00020499,2]
[346947260,1735415454136,-155.323138,0.00020499,2]
[346947261,1735415454145,-322.481165,0.00020499,2]
[346947262,1735415454154,-322.481165,0.00020499,2]
[346947263,1735415454163,-322.481165,0.00020499,2]
[346947264,1735415454171,-322.481165,0.00020499,2]
[346947265,1735415454181,-322.481165,0.00020499,2]
[346947266,1735415454251,-322.481165,0.00020499,2]
[346947267,1735415454268,-151.0,0.00020499,2]
[346947268,1735415454278,-151.0,0.00020499,2]
[346947269,1735415454292,-151.0,0.00020499,2]
[346947270,1735415454301,-151.0,0.00020499,2]
[346947271,1735415454310,-151.0,0.00020499,2]
[346947272,1735415454319,-151.0,0.00020499,2]
[346947273,1735415454330,-200.886779,0.00020499,2]
[346947274,1735415454339,-200.886779,0.00020499,2]
[346947275,1735415454348,-200.886779,0.00020499,2]
[346947276,1735415454359,-200.886779,0.00020499,2]
[346947277,1735415454368,-200.886779,0.00020499,2]
[346947278,1735415454377,-200.886779,0.00020499,2]
[346947279,1735415454386,-151.0,0.00020499,2]
[346947280,1735415454396,-279.296123,0.00020499,2]
[346947281,1735415454405,-151.0,0.00020499,2]
[346947282,1735415454414,-151.0,0.00020499,2]
[346947283,1735415454424,-175.52379,0.00020499,2]
[346947284,1735415454433,-175.52379,0.00020499,2]
[346947285,1735415454442,-175.52379,0.00020499,2]
[346947286,1735415454452,-175.52379,0.00020499,2]
[346947287,1735415454461,-448.878934,0.00020499,2]
[346947288,1735415454470,-448.878934,0.00020499,2]
[346947289,1735415454480,-448.878934,0.00020499,2]
[346947290,1735415454489,-448.878934,0.00020499,2]
[346947291,1735415454499,-269.988816,0.00020499,2]
[346947292,1735415454508,-269.988816,0.00020499,2]
[346947293,1735415454517,-269.988816,0.00020499,2]
[346947294,1735415454526,-269.988816,0.00020499,2]
[346947295,1735415454535,-473.319301,0.00020499,2]
[346947296,1735415454544,-473.319301,0.00020499,2]
[346947297,1735415454553,-473.319301,0.00020499,2]
[346947298,1735415454563,-473.319301,0.00020499,2]
[346947299,1735415454572,-153.685708,0.00020499,2]
[346947300,1735415454581,-153.685708,0.00020499,2]
[346947301,1735415454591,-153.685708,0.00020499,2]
[346947302,1735415454601,-153.685708,0.00020499,2]
[346947303,1735415454610,-153.685708,0.00020499,2]
[346947304,1735415454620,-153.685708,0.00020499,2]
[346947305,1735415454629,-287.286945,0.00020499,2]
[346947306,1735415454638,-287.286945,0.00020499,2]
[346947307,1735415454647,-287.286945,0.00020499,2]
[346947308,1735415454656,-287.286945,0.00020499,2]
[346947309,1735415454665,-287.286945,0.00020499,2]
[346947310,1735415454674,-287.286945,0.00020499,2]
[346947311,1735415454685,-320.310933,0.00020499,2]
[346947312,1735415454695,-320.310933,0.00020499,2]
[346947313,1735415454704,-320.310933,0.00020499,2]
[346947314,1735415454714,-151.0,0.00020499,2]
[346947315,1735415454723,-151.0,0.00020499,2]
[346947316,1735415454732,-151.0,0.00020499,2]
[346947317,1735415454742,-320.310933,0.00020499,2]
[346947318,1735415454752,-320.310933,0.00020499,2]
[346947319,1735415454761,-320.310933,0.00020499,2]
[346947320,1735415454770,-151.0,0.00020499,2]
[346947321,1735415454779,-945.932784,0.00020499,2]
[346947322,1735415454789,-945.932784,0.00020499,2]
[346947323,1735415454798,-151.0,0.00020499,2]
[346947324,1735415454808,-718.03569,0.00020499,2]
[346947325,1735415454817,-151.0,0.00020499,2]
[346947326,1735415454826,-718.03569,0.00020499,2]
[346947327,1735415454836,-151.0,0.00020499,2]
[346947328,1735415454845,-195.77549,0.00020499,2]
[346947329,1735415454855,-195.77549,0.00020499,2]
[346947330,1735415454865,-151.0,0.00020499,2]
[346947331,1735415454874,-192.627255,0.00020499,2]
[346947332,1735415454884,-192.627255,0.00020499,2]
[346947333,1735415454893,-524.829972,0.00020499,2]
[346947334,1735415454903,-524.829972,0.00020499,2]
[346947335,1735415454912,-151.0,0.000205,3]
[346947336,1735415454921,-699.625851,0.000205,2]
[346947337,1735415454930,-699.625851,0.000205,2]
[346947338,1735415454939,-151.0,0.000205,2]
[346947339,1735415454948,-175.52379,0.000205,2]
[346947340,1735415454958,-175.52379,0.000205,2]
[346947341,1735415454969,-269.988816,0.000205,2]
[346947342,1735415454978,-269.988816,0.000205,2]
[346947343,1735415454988,-270.98943915,0.00020505,2]
[346947344,1735415454997,-699.625851,0.00020508,2]
[346947345,1735415455006,-699.625851,0.00020508,2]
[346947346,1735415455016,-699.625851,0.00020508,2]
[346947347,1735415455025,-699.625851,0.00020508,2]
[346947348,1735415455034,-699.625851,0.00020508,2]
[346947349,1735415455043,-699.625851,0.00020508,2]
[346947350,1735415455052,-699.625851,0.00020508,2]
[346947351,1735415455061,-699.625849,0.00020508,2]
[346947352,1735415455070,-281.248894,0.00020508,2]
[346947354,1735415455079,-203.377828,0.00020508,2]
[346947355,1735415455089,-203.377828,0.00020508,2]
[346947356,1735415455098,-203.377828,0.00020508,2]
[346947357,1735415455107,-203.377828,0.00020508,2]
[346947358,1735415455116,-203.377828,0.00020508,2]
[346947359,1735415455126,-203.377819,0.00020508,2]
[346947360,1735415455136,-322.481165,0.00020508,2]
[346947361,1735415455146,-322.481165,0.00020508,2]
[346947362,1735415455156,-322.481165,0.00020508,2]
[346947363,1735415455165,-322.481165,0.00020508,2]
[346947364,1735415455175,-322.481165,0.00020508,2]
[346947365,1735415455185,-322.481159,0.00020508,2]
[346947366,1735415455194,-151.0,0.00020508,2]
[346947367,1735415455203,-297.412884,0.00020508,2]
[346947368,1735415455212,-151.0,0.00020508,2]
[346947369,1735415455221,-151.0,0.00020508,2]
[346947370,1735415455231,-151.0,0.00020508,2]
[346947371,1735415455240,-200.886779,0.00020508,2]
[346947372,1735415455249,-200.886779,0.00020508,2]
[346947373,1735415455258,-200.886779,0.00020508,2]
[346947374,1735415455267,-200.886779,0.00020508,2]
[346947375,1735415455276,-200.886779,0.00020508,2]
[346947376,1735415455289,-200.886771,0.00020508,2]
[346947377,1735415455298,-448.878934,0.00020508,2]
[346947378,1735415455307,-448.878934,0.00020508,2]
[346947379,1735415455316,-473.319301,0.00020508,2]
[346947380,1735415455326,-473.319301,0.00020508,2]
[346947381,1735415455335,-945.932784,0.00020508,2]
[346947382,1735415455344,-945.932784,0.00020508,2]
[346947383,1735415455353,-718.03569,0.00020508,2]
[346947384,1735415455364,-164.196816,0.00020508,2]
[346947385,1735415455373,-718.03569,0.00020508,2]
[346947386,1735415455382,-151.0,0.00020508,2]
[346947387,1735415455392,-195.77549,0.00020508,2]
[346947388,1735415455401,-195.77549,0.00020508,2]
[346947389,1735415455410,-286.631346,0.00020508,2]
[346947390,1735415455419,-192.627255,0.00020508,2]
[346947391,1735415455428,-192.627255,0.00020508,2]
[346947392,1735415455438,-524.829972,0.00020508,2]
[346947393,1735415455447,-524.829972,0.00020508,2]
[346947394,1735415455456,-40695.3185539,0.00020509,10]
[346947434,1735416341107,-400.0,0.00013973,2]
[346947435,1735416341126,-154.02112611,0.00014962,2]
[346947436,1735416341146,-154.02112611,0.00015113,2]
[346947437,1735416341165,-173.06468352,0.00015418,2]
[346947438,1735416341186,-155.8979111,0.00015418,2]
[346947439,1735416341205,-173.0646835,0.00015419,2]
[346947440,1735416341224,-154.02112611,0.00015419,2]
[346947441,1735416341244,-173.0646835,0.00015419,2]
[346947442,1735416341264,-300.0,0.00015516,2]
[346947443,1735416341284,-500.0,0.00015517,2]
[346947444,1735416341303,-271.92978894,0.00015517,2]
[346947446,1735416429137,-1340.50487871,0.00015208,2]
[346947447,1735416429159,-983.92668056,0.00015362,2]
[346947448,1735416441102,-356.57819815,0.00015362,2]
[346947449,1735416441123,-160.51294878,0.00015418,2]
[346947450,1735416441144,-219.42299073,0.00015517,2]
[346947451,1735416441165,-500.0,0.00015517,2]
[346947452,1735416441185,-468.75010851,0.00015517,2]
[346947453,1735416444093,-201.53025717,0.00015418,2]
[346947454,1735416444116,-139.67727206,0.00015517,2]
[346947455,1735416444140,-500.0,0.00015517,2]
[346947456,1735416444162,-219.2600724,0.00015517,2]
[346947457,1735416454088,-280.7399276,0.00015517,2]
[346947458,1735416454112,-500.0,0.00015517,2]
[346947459,1735416454134,-500.0,0.00015517,2]
[346947460,1735416454157,-183.31498813,0.00015517,2]
[346947500,1735416631904,-500.0,0.00015517,2]
[346947502,1735416631913,-500.0,0.00015517,2]
[346947504,1735416631923,-500.0,0.00015517,2]
[346947506,1735416631932,-500.0,0.00015517,2]
[346947508,1735416631942,-500.0,0.00015517,2]
[346947510,1735416631951,-500.0,0.00015517,2]
[346947512,1735416631961,-500.0,0.00015517,2]
[346947514,1735416631970,-500.0,0.00015517,2]
[346947516,1735416631979,-500.0,0.00015517,2]
[346947518,1735416631988,-500.0,0.00015517,2]
[346947520,1735416631998,-500.0,0.00015517,2]
[346947522,1735416632007,-500.0,0.00015517,2]
[346947525,1735416632017,-246.90461551,0.00015517,2]
[346947527,1735416632027,-500.0,0.00015517,2]
[346947529,1735416632036,-500.0,0.00015517,2]
[346947531,1735416632045,-500.0,0.00015517,2]
[346947533,1735416632055,-500.0,0.00015517,2]
[346947534,1735416632066,-500.0,0.00015517,2]
[346947537,1735416632076,-500.0,0.00015517,2]
[346947540,1735416632085,-500.0,0.00015517,2]
[346947543,1735416632094,-500.0,0.00015517,2]
[346947545,1735416632103,-500.0,0.00015517,2]
[346947548,1735416632115,-500.0,0.00015517,2]
[346947551,1735416632124,-500.0,0.00015517,2]
[346947554,1735416632133,-500.0,0.00015517,2]
[346947556,1735416632143,-500.0,0.00015517,2]
[346947559,1735416632153,-500.0,0.00015517,2]
[346947562,1735416632162,-500.0,0.00015517,2]
[346947564,1735416632171,-500.0,0.00015517,2]
[346947567,1735416632180,-200.089924,0.00015517,2]
[346947570,1735416632189,-500.0,0.00015517,2]
[346947573,1735416632198,-500.0,0.00015517,2]
[346947575,1735416632208,-500.0,0.00015517,2]
[346947578,1735416632217,-500.0,0.00015517,2]
[346947580,1735416632227,-500.0,0.00015517,2]
[346947582,1735416632236,-500.0,0.00015517,2]
[346947584,1735416632245,-500.0,0.00015517,2]
[346947586,1735416632254,-500.0,0.00015517,2]
[346947588,1735416632263,-1007.38,0.00015517,2]
[346947590,1735416632272,-500.0,0.00015517,2]
[346947592,1735416632282,-500.0,0.00015517,2]
[346947594,1735416632291,-500.0,0.00015517,2]
[346947596,1735416632299,-500.0,0.00015517,2]
[346947598,1735416632309,-504.83426407,0.00015518,2]
[346947600,1735416632318,-500.0,0.00015518,2]
[346947602,1735416632327,-500.0,0.00015518,2]
[346947604,1735416632336,-500.0,0.00015518,2]
[346947606,1735416632345,-500.0,0.00015518,2]
[346947608,1735416632355,-513.24879858,0.00015518,2]
[346947610,1735416632364,-500.0,0.00015518,2]
[346947612,1735416632373,-500.0,0.00015518,2]
[346947614,1735416632382,-500.0,0.00015518,2]
[346947616,1735416632391,-500.0,0.00015518,2]
[346947618,1735416632400,-190.24022691,0.00015518,2]
[346947620,1735416632409,-500.0,0.00015518,2]
[346947622,1735416632418,-293.78651882,0.00015518,2]
[346947623,1735416632428,-500.0,0.00015518,2]
[346947624,1735416632437,-517.00251571,0.00015518,2]
[346947625,1735416632446,-500.0,0.00015518,2]
[346947627,1735416632456,-500.0,0.00015518,2]
[346947628,1735416632464,-500.0,0.00015518,2]
[346947630,1735416632473,-500.0,0.00015518,2]
[346947632,1735416632483,-500.0,0.00015518,2]
[346947634,1735416632492,-500.0,0.00015518,2]
[346947635,1735416632501,-501.40081499,0.00015518,2]
[346947637,1735416632510,-500.0,0.00015518,2]
[346947639,1735416632520,-500.0,0.00015518,2]
[346947640,1735416632530,-500.0,0.00015518,2]
[346947642,1735416632539,-500.0,0.00015518,2]
[346947643,1735416632548,-500.0,0.00015518,2]
[346947645,1735416632557,-500.0,0.00015518,2]
[346947646,1735416632567,-500.0,0.00015518,2]
[346947647,1735416632576,-500.0,0.00015518,2]
[346947648,1735416632586,-500.0,0.00015518,2]
[346947649,1735416632596,-500.0,0.00015518,2]
[346947650,1735416632606,-501.13413891,0.00015518,2]
[346947651,1735416632615,-500.0,0.00015518,2]
[346947652,1735416632625,-500.0,0.00015518,2]
[346947653,1735416632635,-218.51150275,0.00015518,2]
[346947654,1735416632644,-500.0,0.00015518,2]
[346947655,1735416632653,-500.0,0.00015518,2]
[346947656,1735416632662,-500.0,0.00015518,2]
[346947657,1735416632671,-500.0,0.00015518,2]
[346947658,1735416632680,-500.0,0.00015518,2]
[346947659,1735416632689,-500.0,0.00015518,2]
[346947660,1735416632698,-500.0,0.00015518,2]
[346947661,1735416632707,-500.0,0.00015518,2]
[346947662,1735416632716,-500.0,0.00015518,2]
[346947663,1735416632725,-500.0,0.00015518,2]
[346947664,1735416632736,-500.0,0.00015518,2]
[346947665,1735416632746,-500.0,0.00015518,2]
[346947666,1735416632755,-500.0,0.00015518,2]
[346947667,1735416632764,-500.0,0.00015518,2]
[346947668,1735416632773,-500.0,0.00015518,2]
[346947669,1735416632782,-501.23049456,0.00015518,2]
[346947670,1735416632792,-500.0,0.00015518,2]
[346947671,1735416632801,-500.0,0.00015518,2]
[346947672,1735416632810,-500.0,0.00015518,2]
[346947673,1735416632819,-381.12333016,0.00015518,2]
[346947674,1735416632828,-500.0,0.00015518,2]